fUST/lending_fUST_20250818
["ID","MTS","AMOUNT","RATE_DAILY","PERIOD"]
[379974989,1755455443836,-432.88343097,0.000222,69]
[379974991,1755455443846,-324.81,0.00022231,2]
[379974992,1755455443855,-726.0,0.00022249,2]
[379974994,1755455443864,-151.0,0.00022265,4]
[379974996,1755455443874,-460.0,0.00022294,2]
[379974998,1755455443883,-796.146,0.00022296,2]
[379975000,1755455443892,-179.134,0.00022296,2]
[379975002,1755455443901,-6903.38453015,0.00022319,2]
[379975004,1755455443911,-6716.97940936,0.00022416,2]
[379975007,1755455443920,-500.0,0.00022444,2]
[379975008,1755455443931,-702.75,0.00022465,2]
[379975011,1755455443942,-480.0,0.00022465,2]
[379975013,1755455443953,-480.0,0.00022465,2]
[379975014,1755455443963,-163.0858523,0.00022465,2]
[379975017,1755455443974,-1478.51,0.00022465,2]
[379975019,1755455443984,-480.0,0.00022465,2]
[379975021,1755455443995,-655.98,0.00022465,2]
[379975023,1755455444004,-480.0,0.00022465,2]
[379975025,1755455444013,-480.0,0.00022465,2]
[379975027,1755455444022,-480.0,0.00022465,2]
[379975029,1755455444031,-1029.99,0.00022465,2]
[379975031,1755455444043,-480.0,0.00022465,2]
[379975033,1755455444053,-726.0,0.00022523,2]
[379975035,1755455444062,-338.40442225,0.00022615,2]
[379975037,1755455444070,-500.0,0.00022615,2]
[379975039,1755455444080,-500.0,0.00022615,2]
[379975041,1755455444089,-500.0,0.00022615,2]
[379975043,1755455444100,-500.0,0.00022615,2]
[379975045,1755455444110,-573.29265701,0.00022615,2]
[379975047,1755455444119,-500.0,0.00022615,2]
[379975049,1755455444129,-500.0,0.00022615,2]
[379975051,1755455444139,-500.0,0.00022615,2]
[379975053,1755455444148,-500.0,0.00022615,2]
[379975055,1755455444158,-500.0,0.00022615,2]
[379975056,1755455444167,-500.0,0.00022615,2]
[379975059,1755455444179,-158.62980632,0.00022615,2]
[379975060,1755455444188,-158.60123121,0.00022615,2]
[379975062,1755455444197,-188.65528262,0.00022615,2]
[379975064,1755455444207,-400.51360892,0.00022615,2]
[379975066,1755455444217,-340.42651408,0.00022615,2]
[379975068,1755455444226,-258.67006152,0.00022615,2]
[379975070,1755455444236,-158.20000211,0.00022615,2]
[379975072,1755455444246,-158.61775077,0.00022615,2]
[379975074,1755455444255,-160.62292884,0.00022615,2]
[379975076,1755455444264,-500.0,0.00022615,2]
[379975078,1755455444274,-500.0,0.00022615,2]
[379975080,1755455444283,-500.0,0.00022615,2]
[379975082,1755455444293,-500.0,0.00022615,2]
[379975084,1755455444303,-248.73521794,0.00022615,2]
[379975086,1755455444312,-158.61449762,0.00022615,2]
[379975088,1755455444321,-521.8552445,0.00022615,2]
[379975090,1755455444330,-500.0,0.00022615,2]
[379975092,1755455444339,-500.0,0.00022615,2]
[379975094,1755455444348,-500.0,0.00022615,2]
[379975096,1755455444357,-500.0,0.00022615,2]
[379975098,1755455444367,-217.04616223,0.00022615,2]
[379975100,1755455444376,-560.68640199,0.00022615,2]
[379975102,1755455444385,-500.0,0.00022615,2]
[379975117,1755455444520,-500.0,0.00022615,2]
[379975119,1755455444530,-500.0,0.00022615,2]
[379975121,1755455444539,-500.0,0.00022615,2]
[379975123,1755455444549,-500.0,0.00022615,2]
[379975125,1755455444558,-500.0,0.00022615,2]
[379975127,1755455444567,-500.0,0.00022615,2]
[379975129,1755455444576,-500.99412831,0.00022615,2]
[379975131,1755455444586,-500.0,0.00022615,2]
[379975133,1755455444595,-500.0,0.00022615,2]
[379975135,1755455444605,-500.0,0.00022615,2]
[379975137,1755455444625,-500.0,0.00022615,2]
[379975139,1755455444647,-500.0,0.00022615,2]
[379975141,1755455444669,-500.16719209,0.00022615,2]
[379975143,1755455444690,-500.17107343,0.00022615,2]
[379975145,1755455444712,-500.0,0.00022615,2]
[379975147,1755455444734,-500.0,0.00022615,2]
[379975149,1755455444756,-500.0,0.00022615,2]
[379975151,1755455444778,-500.0,0.00022615,2]
[379975153,1755455444799,-500.22350934,0.00022615,2]
[379975155,1755455444822,-500.0,0.0002266,2]
[379975157,1755455444846,-415.34722731,0.0002266,2]
[379975159,1755455444868,-500.0,0.00022662,2]
[379975161,1755455444891,-500.0,0.00022681,2]
[379975163,1755455444913,-8564.08284501,0.00022739,7]
[379975165,1755455444934,-702.75,0.00022739,2]
[379975167,1755455444944,-480.0,0.00022739,2]
[379975169,1755455444953,-480.0,0.00022739,2]
[379975171,1755455444962,-1478.51,0.00022739,2]
[379975173,1755455444971,-480.0,0.00022739,2]
[379975175,1755455444980,-655.98,0.00022739,2]
[379975177,1755455444989,-480.0,0.00022739,2]
[379975179,1755455444999,-480.0,0.00022739,2]
[379975181,1755455445009,-480.0,0.00022739,2]
[379975183,1755455445018,-1029.99,0.00022739,2]
[379975185,1755455445027,-480.0,0.00022739,2]
[379975187,1755455445037,-726.0,0.00022797,2]
[379975189,1755455445046,-432.88343097,0.00022833,72]
[379975191,1755455445055,-560.0,0.00022842,2]
[379975193,1755455445065,-151.0,0.00022857,4]
[379975195,1755455445074,-285.37552865,0.00022904,8]
[379975197,1755455445083,-6716.97940936,0.0002292,2]
[379975199,1755455445092,-144.69495481,0.00022952,4]
[379975209,1755455445183,-567.95000424,0.00022952,4]
[379975212,1755455445194,-3287.35504095,0.00022952,4]
[379975214,1755455445203,-160.0,0.00023,2]
[379975215,1755455445212,-702.75,0.00023013,2]
[379975217,1755455445222,-480.0,0.00023013,2]
[379975219,1755455445231,-480.0,0.00023013,2]
[379975221,1755455445240,-1478.51,0.00023013,2]
[379975223,1755455445249,-480.0,0.00023013,2]
[379975225,1755455445259,-655.98,0.00023013,2]
[379975227,1755455445268,-480.0,0.00023013,2]
[379975229,1755455445277,-480.0,0.00023013,2]
[379975231,1755455445286,-480.0,0.00023013,2]
[379975234,1755455445296,-1029.99,0.00023013,2]
[379975235,1755455445305,-480.0,0.00023013,2]
[379975237,1755455445314,-167.0,0.00023014,7]
[379975239,1755455445324,-726.0,0.00023071,2]
[379975241,1755455445333,-458.80512045,0.00023086,2]
[379975243,1755455445342,-406.01,0.00023157,2]
[379975245,1755455445351,-1000.0,0.00023163,2]
[379975247,1755455445360,-1093.77448701,0.00023163,2]
[379975249,1755455445369,-864.0,0.00023267,20]
[379975251,1755455445378,-702.75,0.00023287,2]
[379975253,1755455445387,-480.0,0.00023287,2]
[379975255,1755455445397,-480.0,0.00023287,2]
[379975257,1755455445406,-1478.51,0.00023287,2]
[379975259,1755455445415,-480.0,0.00023287,2]
[379975261,1755455445424,-655.98,0.00023287,2]
[379975263,1755455445433,-480.0,0.00023287,2]
[379975265,1755455445442,-480.0,0.00023287,2]
[379975267,1755455445452,-480.0,0.00023287,2]
[379975269,1755455445473,-1029.99,0.00023287,2]
[379975271,1755455445495,-480.0,0.00023287,2]
[379975273,1755455445524,-688.575363,0.00023288,2]
[379975275,1755455445548,-726.0,0.00023345,2]
[379975277,1755455445571,-660.0,0.0002339,2]
[379975279,1755455445594,-972.0,0.00023395,2]
[379975281,1755455445621,-637.0,0.00023395,2]
[379975283,1755455445642,-2153.0,0.00023395,2]
[379975285,1755455445664,-408.0,0.00023395,2]
[379975287,1755455445684,-422.367,0.00023395,2]
[379975289,1755455445705,-159.60508025,0.00023419,2]
[379975291,1755455445726,-6716.97940936,0.00023423,2]
[379975293,1755455445749,-151.0,0.00023449,5]
[379975295,1755455445774,-4822.54,0.000235,7]
[379975298,1755455445787,-12179.79178255,0.000235,2]
[379975300,1755455445799,-8044.45010541,0.000235,2]
[379975302,1755455445810,-9727.03811204,0.000235,2]
[379975304,1755455445819,-702.75,0.00023561,2]
[379975306,1755455445828,-480.0,0.00023561,2]
[379975308,1755455445837,-480.0,0.00023561,2]
[379975310,1755455445846,-78.00740906,0.00023561,2]
[379975312,1755455445857,-1400.50259094,0.00023561,2]
[379975314,1755455445866,-521.88735864,0.00023561,2]
[379975422,1755455447061,-480.0,0.00022191,2]
[379975424,1755455447071,-480.0,0.00022465,2]
[379975426,1755455447080,-168.89872184,0.00022615,2]
[379975428,1755455447089,-480.0,0.00022739,2]
[379975430,1755455447098,-46.08152753,0.00023561,2]
[379975431,1755455447109,-655.98,0.00023561,2]
[379975433,1755455447118,-480.0,0.00023561,2]
[379975435,1755455447127,-480.0,0.00023561,2]
[379975437,1755455447137,-480.0,0.00023561,2]
[379975439,1755455447148,-1029.99,0.00023561,2]
[379975441,1755455447157,-480.0,0.00023561,2]
[379975443,1755455447167,-11511.84,0.000236,7]
[379975445,1755455447176,-151.0,0.000236,7]
[379975447,1755455447187,-12682.46447135,0.000236,7]
[379975449,1755455447196,-375.77065697,0.000236,7]
[379975451,1755455447205,-160.0,0.000236,7]
[379975453,1755455447214,-417.15472785,0.000236,7]
[379975455,1755455447224,-215.71995163,0.000236,7]
[379975457,1755455447233,-726.0,0.00023619,2]
[379975459,1755455447242,-1500.0,0.00023711,2]
[379975461,1755455447251,-700.0,0.00023712,2]
[379975463,1755455447260,-500.0,0.00023778,2]
[379975465,1755455447270,-500.0,0.00023778,2]
[379975467,1755455447279,-309.5546377,0.00023778,2]
[379975469,1755455447289,-480.0,0.00023835,2]
[379975471,1755455447298,-1478.51,0.00023835,2]
[379975473,1755455447307,-655.98,0.00023835,2]
[379975475,1755455447317,-352.58,0.00023835,2]
[379975477,1755455447327,-1029.99,0.00023835,2]
[379975479,1755455447336,-518.33,0.00023835,2]
[379975481,1755455447345,-726.0,0.00023893,2]
[379975483,1755455447354,-6716.97940936,0.00023926,2]
[379975485,1755455447363,-760.0,0.00023938,2]
[379975487,1755455447372,-232.1512529,0.00024,7]
[379975489,1755455447381,-160.0,0.00024,7]
[379975491,1755455447390,-528.48506731,0.00024,7]
[379975493,1755455447399,-160.0,0.00024,7]
[379975495,1755455447408,-216.83204348,0.00024,7]
[379975496,1755455447417,-160.0,0.00024,7]
[379975498,1755455447426,-160.0,0.00024,7]
[379975500,1755455447435,-843.71309931,0.00024,7]
[379975502,1755455447444,-151.0,0.0002404,5]
[379975504,1755455447453,-487.22,0.00024084,2]
[379975506,1755455447462,-151.0,0.000241,10]
[379975508,1755455447471,-480.0,0.00024109,2]
[379975510,1755455447480,-1478.51,0.00024109,2]
[379975512,1755455447489,-655.98,0.00024109,2]
[379975514,1755455447498,-1029.99,0.00024109,2]
[379975516,1755455447507,-726.0,0.00024166,2]
[379975518,1755455447516,-151.0,0.000242,6]
[379975520,1755455447526,-823.0,0.00024205,2]
[379975522,1755455447535,-2000.0,0.00024259,2]
[379975524,1755455447544,-480.0,0.00024383,2]
[379975526,1755455447553,-1478.51,0.00024383,2]
[379975528,1755455447561,-655.98,0.00024383,2]
[379975530,1755455447570,-1029.99,0.00024383,2]
[379975532,1755455447579,-6716.97940936,0.00024429,2]
[379975533,1755455447588,-726.0,0.0002444,2]
[379975535,1755455447597,-155.19,0.00024465,7]
[379975537,1755455447607,-166.15,0.00024465,7]
[379975539,1755455447616,-151.59,0.00024465,7]
[379975541,1755455447627,-860.0,0.00024486,2]
[379975543,1755455447636,-241.27660106,0.000245,2]
[379975545,1755455447645,-458.80512045,0.00024557,2]
[379975547,1755455447655,-155.19,0.00024565,7]
[379975549,1755455447664,-166.15,0.00024565,7]
[379975551,1755455447673,-151.59,0.00024565,7]
[379975553,1755455447682,-151.0,0.00024632,5]
[379975555,1755455447691,-480.0,0.00024657,2]
[379975557,1755455447700,-1478.51,0.00024657,2]
[379975571,1755455447820,-655.98,0.00024657,2]
[379975573,1755455447830,-1029.99,0.00024657,2]
[379975575,1755455447839,-380.0,0.00024658,2]
[379975577,1755455447848,-151.0,0.00024658,2]
[379975579,1755455447857,-155.19,0.00024665,7]
[379975581,1755455447867,-166.16586478,0.00024665,7]
[379975583,1755455447876,-151.59,0.00024665,7]
[379975585,1755455447885,-4822.54,0.000247,7]
[379975587,1755455447894,-23164.12864881,0.000247,2]
[379975589,1755455447905,-1316.39270049,0.000247,2]
[379975607,1755455448085,-480.0,0.00019178,2]
[379975609,1755455448095,-548.65669777,0.00019178,2]
[379975611,1755455448108,-480.0,0.00019452,2]
[379975613,1755455448118,-249.8242684,0.00019726,2]
[379975615,1755455448133,-230.1757316,0.00019726,2]
[379975617,1755455448143,-434.0,0.0002,2]
[379975619,1755455448152,-480.0,0.00023013,2]
[379975621,1755455448161,-480.0,0.00023287,2]
[379975623,1755455448170,-480.0,0.00023561,2]
[379975625,1755455448180,-480.0,0.00023835,2]
[379975627,1755455448189,-480.0,0.00024109,2]
[379975629,1755455448198,-480.0,0.00024383,2]
[379975631,1755455448208,-5470.7586507,0.000247,2]
[379975633,1755455448217,-726.0,0.00024714,2]
[379975635,1755455448226,-155.19,0.00024765,7]
[379975637,1755455448236,-151.59,0.00024765,7]
[379975639,1755455448245,-150.0,0.00024773,2]
[379975641,1755455448254,-2798.81625265,0.000248,2]
[379975643,1755455448263,-817.80756436,0.000248,2]
[379975645,1755455448273,-2500.0,0.00024807,2]
[379975647,1755455448283,-700.0,0.00024808,2]
[379975649,1755455448293,-155.24,0.00024865,7]
[379975651,1755455448302,-151.59,0.00024865,7]
[379975653,1755455448312,-151.0,0.000249,7]
[379975655,1755455448321,-300.912384,0.000249,7]
[379975657,1755455448332,-151.497329,0.000249,7]
[379975659,1755455448341,-151.0,0.000249,7]
[379975661,1755455448351,-151.0,0.000249,7]
[379975663,1755455448361,-151.0,0.000249,7]
[379975665,1755455448370,-151.0,0.000249,7]
[379975667,1755455448379,-151.0,0.000249,7]
[379975669,1755455448388,-151.0,0.000249,7]
[379975671,1755455448397,-151.0,0.000249,7]
[379975673,1755455448406,-151.0,0.000249,7]
[379975675,1755455448416,-379.590017,0.000249,7]
[379975677,1755455448425,-151.0,0.000249,7]
[379975678,1755455448434,-379.590017,0.000249,7]
[379975679,1755455448443,-151.0,0.000249,7]
[379975680,1755455448452,-151.0,0.000249,7]
[379975681,1755455448461,-151.0,0.000249,7]
[379975682,1755455448470,-151.0,0.000249,7]
[379975683,1755455448479,-151.0,0.000249,7]
[379975684,1755455448488,-153.719746,0.000249,7]
[379975685,1755455448497,-220.39901,0.000249,7]
[379975686,1755455448506,-151.0,0.000249,7]
[379975687,1755455448515,-151.0,0.000249,7]
[379975688,1755455448524,-151.0,0.000249,7]
[379975689,1755455448533,-23496.62899326,0.000249,2]
[379975690,1755455448610,-372.9242503,0.00019178,2]
[379975691,1755455448625,-107.0757497,0.00019178,2]
[379975692,1755455448634,-480.0,0.00024657,2]
[379975694,1755455448643,-4628.5757055,0.000249,2]
[379975696,1755455448655,-3311.22879272,0.000249,2]
[379975699,1755455448666,-271.33917274,0.000249,2]
[379977310,1755456121531,167.540263,0.00027397,120]
[379977311,1755456193281,377.177326,0.00013699,2]
[379977313,1755456373601,3311.96281486,0.00018371,2]
[379977314,1755456373624,1253.03718514,0.00018371,2]
[379977315,1755456396117,-291.47298666,0.00018603,2]
[379977316,1755456396139,-154.68070568,0.00019166,2]
[379977336,1755456632741,-294.575,0.000189,2]
[379977337,1755456632753,-970.08491797,0.000189,2]
[379977426,1755456638641,-1061.47834839,0.000189,2]
[379977427,1755456638650,-2781.72518857,0.00019114,2]
[379977428,1755456638669,-300.0,0.00019177,2]
[379977429,1755456638680,-480.0,0.00019178,2]
[379977431,1755456638690,-570.41,0.00019178,2]
[379977432,1755456638699,-480.0,0.00019178,2]
[379977433,1755456638708,-480.0,0.00019178,2]
[379977434,1755456638717,-480.0,0.00019178,2]
[379977435,1755456638727,-480.0,0.00019178,2]
[379977437,1755456638736,-480.0,0.00019178,2]
[379977438,1755456638745,-480.0,0.00019178,2]
[379977439,1755456638755,-480.0,0.00019178,2]
[379977440,1755456638764,-480.0,0.00019178,2]
[379977442,1755456638773,-480.0,0.00019178,2]
[379977443,1755456638783,-480.0,0.00019178,2]
[379977444,1755456638792,-299.76,0.00019178,2]
[379977445,1755456638801,-480.0,0.00019178,2]
[379977446,1755456638811,-480.0,0.00019178,2]
[379977447,1755456638820,-480.0,0.00019178,2]
[379977448,1755456638830,-480.0,0.00019178,2]
[379977449,1755456638839,-480.0,0.00019178,2]
[379977450,1755456638848,-596.31160832,0.00019178,2]
[379977452,1755456638857,-480.0,0.00019178,2]
[379977454,1755456638866,-480.0,0.00019178,2]
[379977456,1755456638876,-500.0,0.00019178,2]
[379977458,1755456638885,-1098.01,0.00019178,2]
[379977460,1755456638894,-480.0,0.00019178,2]
[379977462,1755456638903,-480.0,0.00019178,2]
[379977464,1755456638912,-480.0,0.00019178,2]
[379977466,1755456638921,-526.18,0.00019178,2]
[379977467,1755456638930,-480.0,0.00019178,2]
[379977469,1755456638939,-480.0,0.00019178,2]
[379977471,1755456638948,-480.0,0.00019178,2]
[379977474,1755456638958,-480.0,0.00019178,2]
[379977476,1755456638967,-480.0,0.00019178,2]
[379977477,1755456638977,-480.0,0.00019178,2]
[379977479,1755456638986,-634.43,0.00019178,2]
[379977481,1755456638995,-480.0,0.00019178,2]
[379977483,1755456639004,-480.0,0.00019178,2]
[379977486,1755456639013,-480.0,0.00019178,2]
[379977487,1755456639023,-480.0,0.00019178,2]
[379977504,1755456639168,-487.17,0.00019178,2]
[379977506,1755456639178,-480.0,0.00019178,2]
[379977508,1755456639187,-480.0,0.00019178,2]
[379977509,1755456639196,-480.0,0.00019178,2]
[379977510,1755456639204,-562.34,0.00019178,2]
[379977511,1755456639213,-480.0,0.00019178,2]
[379977512,1755456639222,-555.25,0.00019178,2]
[379977513,1755456639231,-480.0,0.00019178,2]
[379977514,1755456639241,-480.0,0.00019178,2]
[379977516,1755456639250,-480.0,0.00019178,2]
[379977517,1755456639259,-480.0,0.00019178,2]
[379977518,1755456639269,-480.0,0.00019178,2]
[379977519,1755456639278,-480.0,0.00019178,2]
[379977520,1755456639287,-480.0,0.00019178,2]
[379977521,1755456639295,-480.0,0.00019178,2]
[379977522,1755456639305,-480.0,0.00019178,2]
[379977523,1755456639314,-480.0,0.00019178,2]
[379977524,1755456639323,-480.0,0.00019178,2]
[379977525,1755456639332,-480.0,0.00019178,2]
[379977526,1755456639341,-480.0,0.00019178,2]
[379977527,1755456639351,-480.0,0.00019178,2]
[379977528,1755456639360,-480.0,0.00019178,2]
[379977529,1755456639370,-500.0,0.00019178,2]
[379977530,1755456639379,-480.0,0.00019214,2]
[379977531,1755456639388,-480.0,0.00019214,2]
[379977532,1755456639397,-578.27,0.00019214,2]
[379977533,1755456639406,-480.0,0.00019214,2]
[379977534,1755456639415,-480.0,0.00019214,2]
[379977535,1755456639424,-480.0,0.00019214,2]
[379977536,1755456639433,-480.0,0.00019214,2]
[379977537,1755456639442,-480.0,0.00019214,2]
[379977538,1755456639451,-508.3856485,0.00019214,2]
[379977539,1755456639460,-480.0,0.00019214,2]
[379977540,1755456639469,-480.0,0.00019214,2]
[379977541,1755456639478,-624.14987396,0.00019214,2]
[379977542,1755456639487,-480.0,0.00019214,2]
[379977543,1755456639496,-1000.0,0.00019214,2]
[379977544,1755456639506,-722.47,0.00019451,2]
[379977545,1755456639515,-480.0,0.00019451,2]
[379977547,1755456639525,-480.0,0.00019451,2]
[379977549,1755456639534,-480.0,0.00019451,2]
[379977551,1755456639543,-480.0,0.00019451,2]
[379977552,1755456639552,-480.0,0.00019452,2]
[379977554,1755456639561,-480.0,0.00019452,2]
[379977556,1755456639571,-480.0,0.00019452,2]
[379977558,1755456639580,-480.0,0.00019452,2]
[379977560,1755456639589,-480.0,0.00019452,2]
[379977562,1755456639599,-525.77367943,0.00019452,2]
[379977564,1755456639608,-480.0,0.00019452,2]
[379977566,1755456639617,-480.0,0.00019452,2]
[379977568,1755456639626,-1098.01,0.00019452,2]
[379977570,1755456639635,-480.0,0.00019452,2]
[379977572,1755456639644,-219.16,0.00019452,2]
[379977574,1755456639655,-480.0,0.00019452,2]
[379977576,1755456639664,-480.0,0.00019452,2]
[379977578,1755456639674,-480.0,0.00019452,2]
[379977580,1755456639684,-480.0,0.00019452,2]
[379977582,1755456639693,-423.82,0.00019452,2]
[379977583,1755456639703,-634.43,0.00019452,2]
[379977585,1755456639712,-480.0,0.00019452,2]
[379977587,1755456639721,-480.0,0.00019452,2]
[379977589,1755456639731,-480.0,0.00019452,2]
[379977591,1755456639740,-487.17,0.00019452,2]
[379977593,1755456639749,-480.0,0.00019452,2]
[379977595,1755456639758,-480.0,0.00019452,2]
[379977597,1755456639767,-479.56,0.00019452,2]
[379977599,1755456639777,-480.0,0.00019452,2]
[379977601,1755456639786,-480.0,0.00019452,2]
[379977603,1755456639796,-480.0,0.00019452,2]
[379977605,1755456639805,-480.0,0.00019452,2]
[379977607,1755456639814,-480.0,0.00019452,2]
[379977609,1755456639824,-480.0,0.00019452,2]
[379977611,1755456639834,-480.0,0.00019452,2]
[379977613,1755456639843,-480.0,0.00019452,2]
[379977615,1755456639852,-480.0,0.00019452,2]
[379977617,1755456639861,-480.0,0.00019452,2]
[379977619,1755456639872,-480.0,0.00019452,2]
[379977621,1755456639882,-185.05427938,0.00019486,2]
[379977623,1755456639891,-535.6578593,0.00019486,2]
[379977625,1755456639900,-564.72743089,0.00019486,2]
[379977627,1755456639910,-500.0,0.00019486,2]
[379977629,1755456639920,-500.0,0.00019486,2]
[379977631,1755456639929,-500.0,0.00019486,2]
[379977633,1755456639939,-572.7611898,0.00019486,2]
[379977635,1755456639948,-480.0,0.00019488,2]
[379977637,1755456639957,-480.0,0.00019488,2]
[379977639,1755456639965,-548.35,0.00019488,2]
[379977641,1755456639975,-480.0,0.00019488,2]
[379977643,1755456639985,-460.0,0.00019488,2]
[379977645,1755456639995,-480.0,0.00019488,2]
[379977647,1755456640003,-200.0,0.00019561,20]
[379977649,1755456640013,-200.0,0.00019561,20]
[379977651,1755456640022,-200.0,0.00019561,20]
[379977653,1755456640031,-200.0,0.00019561,20]
[379977655,1755456640041,-200.0,0.00019561,20]
[379977657,1755456640050,-200.0,0.00019561,20]
[379977659,1755456640060,-200.0,0.00019561,20]
[379977661,1755456640069,-200.0,0.00019561,20]
[379977663,1755456640079,-200.0,0.00019561,20]
[379977665,1755456640088,-200.0,0.00019561,20]
[379977667,1755456640097,-600.0,0.00019561,20]
[379977669,1755456640106,-722.47,0.00019725,2]
[379977671,1755456640115,-480.0,0.00019725,2]
[379977673,1755456640124,-584.16,0.00019725,2]
[379977675,1755456640133,-480.0,0.00019725,2]
[379977677,1755456640143,-568.71,0.00019725,2]
[379977679,1755456640152,-436.73,0.00019726,2]
[379977681,1755456640161,-480.0,0.00019726,2]
[379977683,1755456640170,-480.0,0.00019726,2]
[379977685,1755456640181,-456.85,0.00019726,2]
[379977686,1755456640190,-480.0,0.00019726,2]
[379977688,1755456640200,-375.08,0.00019726,2]
[379977690,1755456640209,-480.0,0.00019726,2]
[379977692,1755456640219,-1098.01,0.00019726,2]
[379977694,1755456640228,-480.0,0.00019726,2]
[379977696,1755456640238,-480.0,0.00019726,2]
[379977697,1755456640247,-480.0,0.00019726,2]
[379977698,1755456640257,-634.43,0.00019726,2]
[379977699,1755456640267,-480.0,0.00019726,2]
[379977700,1755456640276,-480.0,0.00019726,2]
[379977701,1755456640286,-487.17,0.00019726,2]
[379977702,1755456640296,-480.0,0.00019726,2]
[379977703,1755456640306,-480.0,0.00019726,2]
[379977704,1755456640315,-480.0,0.00019726,2]
[379977705,1755456640325,-480.0,0.00019726,2]
[379977706,1755456640335,-480.0,0.00019726,2]
[379977707,1755456640344,-480.0,0.00019726,2]
[379977708,1755456640354,-480.0,0.00019726,2]
[379977709,1755456640364,-150.0,0.00019745,2]
[379977710,1755456640374,-480.0,0.00019762,2]
[379977711,1755456640383,-480.0,0.00019762,2]
[379977712,1755456640393,-364.63,0.00019762,2]
[379977713,1755456640402,-295.92,0.00019762,2]
[379977714,1755456640411,-413.145217,0.00019863,2]
[379977715,1755456640420,-6273.20220548,0.000199,2]
[379977716,1755456640429,-722.47,0.00019999,2]
[379977717,1755456640439,-480.0,0.00019999,2]
[379977718,1755456640448,-480.0,0.00019999,2]
[379977719,1755456640457,-480.0,0.0002,2]
[379977720,1755456640467,-505.74,0.0002,2]
[379977721,1755456640476,-215.7,0.0002,2]
[379977722,1755456640485,-480.0,0.0002,2]
[379977723,1755456640494,-1098.01,0.0002,2]
[379977724,1755456640504,-596.83411631,0.0002,2]
[379977725,1755456640514,-480.0,0.0002,2]
[379977726,1755456640523,-480.0,0.0002,2]
[379977727,1755456640532,-634.43,0.0002,2]
[379977728,1755456640542,-480.0,0.0002,2]
[379977729,1755456640551,-480.0,0.0002,2]
[379977730,1755456640561,-487.17,0.0002,2]
[379977731,1755456640570,-480.0,0.0002,2]
[379977732,1755456640579,-480.0,0.0002,2]
[379977733,1755456640589,-480.0,0.0002,2]
[379977734,1755456640598,-480.0,0.0002,2]
[379977735,1755456640607,-480.0,0.0002,2]
[379977736,1755456640616,-480.0,0.0002,2]
[379977737,1755456640626,-150.96,0.00020036,2]
[379977738,1755456640635,-480.0,0.00020036,2]
[379977739,1755456640644,-377.177326,0.00020187,2]
[379977740,1755456640657,-2781.72518857,0.00020252,2]
[379977741,1755456640666,-480.0,0.00020273,2]
[379977742,1755456640676,-722.47,0.00020273,2]
[379977743,1755456640686,-1098.01,0.00020273,2]
[379977744,1755456640695,-480.0,0.00020273,2]